bitfinex-derivatives/quotes_SOLF0:USTF0_20230701
["timestamp","ask_amount","ask_price","bid_price","bid_amount"]
[1688217276682,118.2,18.449,18.44,9.95332482]
[1688217276983,0.78863393,18.448,18.441,9.95332482]
[1688217277188,0.78863393,18.448,18.436,173.2973]
[1688217277388,118.2,18.449,18.437,9.95208553]
[1688217277580,176.32,18.451,18.439,118.33]
[1688217277787,118.2,18.451,18.443,0.66967798]
[1688217278088,0.85592544,18.447,18.443,0.66967798]
[1688217283995,118.17,18.455,18.444,9.95065242]
[1688217284202,118.86,18.458,18.446,118.15]
[1688217285193,0.78858672,18.454,18.45,0.88352041]
[1688217292495,59.071,18.462,18.451,118.15]
[1688217292800,475.44,18.479,18.456,118.15]
[1688217292801,117.81,18.468,18.456,118.15]
[1688217293398,0.74598807,18.464,18.46,0.83512662]
[1688217297796,118.2,18.463,18.46,0.83512662]
[1688217299401,118.2,18.463,18.45,118.86]
[1688217299607,56.1869,18.462,18.45,118.86]
[1688217300604,0.85312727,18.458,18.454,0.83419097]
[1688217303403,56.1869,18.462,18.454,118.98419097]
[1688217303707,118.86,18.466,18.454,118.98419097]
[1688217303902,118.86,18.466,18.454,118.15]
[1688217304396,118.86,18.466,18.458,0.73641377]
[1688217304600,0.81591327,18.462,18.458,0.73641377]
[1688217305710,58.3136,18.47,18.46,83.91]
[1688217306004,55.7289,18.478,18.465,83.44]
[1688217306598,0.73661265,18.473,18.47,0.8260338]
[1688217307302,83.91,18.483,18.471,83.69]
[1688217307604,55.7289,18.485,18.473,83.45]
[1688217307814,83.91,18.483,18.47,283.44]
[1688217308315,0.81373394,18.478,18.475,0.85776773]
[1688217311208,139.6389,18.485,18.475,0.85776773]
[1688217311410,55.7289,18.485,18.475,84.76776773]
[1688217311906,55.7289,18.485,18.477,83.91]
[1688217312299,0.71779237,18.483,18.479,0.84357455]
[1688217314005,56.1677,18.493,18.48,83.45]
[1688217314210,95.56710476,18.492,18.48,83.45]
[1688217314908,95.56710476,18.492,18.484,0.73891105]
[1688217315412,83.53,18.494,18.484,0.73891105]
[1688217316208,56.1677,18.497,18.486,83.44]
[1688217316412,95.53206133,18.496,18.49,0.83952138]
[1688217316708,83.91,18.501,18.49,0.83952138]
[1688217316910,95.53008239,18.5,18.494,0.80582915]
[1688217317110,83.38,18.498,18.494,0.80582915]
[1688217317308,95.53008239,18.497,18.494,0.80582915]
[1688217318206,83.91,18.501,18.494,0.80582915]
[1688217318407,95.52361669,18.5,18.494,0.80582915]
[1688217319411,83.38,18.498,18.494,0.80582915]
[1688217319706,95.52361669,18.497,18.494,0.80582915]
[1688217321216,83.91,18.496,18.483,83.91]
[1688217321706,95.54452105,18.495,18.483,83.91]
[1688217321912,83.91,18.494,18.481,143.2512]
[1688217322309,0.75149477,18.489,18.486,0.86035303]
[1688217322506,139.1308,18.497,18.486,0.86035303]
[1688217322710,95.53841789,18.496,18.486,0.86035303]
[1688217322915,139.1308,18.497,18.486,0.86035303]
[1688217323107,95.53842111,18.496,18.486,0.86035303]
[1688217323705,83.91,18.491,18.486,0.86035303]
[1688217324013,83.91,18.487,18.473,83.91]
[1688217324511,83.91,18.487,18.475,83.69]
[1688217324908,0.81727066,18.483,18.479,0.77826842]
[1688217327725,83.38,18.48,18.466,83.44]
[1688217328916,0.80694161,18.475,18.471,0.88516833]
[1688217329220,83.91,18.473,18.457,83.45]
[1688217329418,83.91,18.467,18.455,56.0351]
[1688217329722,83.91,18.467,18.454,83.91]
[1688217330225,0.87512531,18.462,18.459,0.88013873]
[1688217330517,0.7564814,18.462,18.459,0.85197003]
[1688217331223,83.91,18.468,18.459,0.85197003]
[1688217331410,83.91,18.471,18.459,0.85197003]
[1688217331614,83.91,18.471,18.458,83.91]
[1688217331909,83.91,18.467,18.454,83.44]
[1688217332421,0.75073972,18.462,18.459,0.83247661]
[1688217336430,84.13073972,18.462,18.449,83.91]
[1688217336629,83.38,18.462,18.45,9.94711044]
[1688217337329,0.86223644,18.458,18.454,0.76400418]
[1688217339633,27.68946398,18.474,18.454,0.76400418]
[1688217339634,83.91,18.467,18.454,84.20400418]
[1688217339816,83.91,18.467,18.454,83.44]
[1688217340014,83.91,18.473,18.454,251.02]
[1688217340219,95.66570766,18.472,18.46,83.44]
[1688217340630,0.84025456,18.468,18.464,0.85286328]
[1688217341420,83.91,18.467,18.455,83.91]
[1688217342525,0.88838448,18.463,18.459,0.83618219]
[1688217350028,83.91,18.473,18.46,83.45]
[1688217350226,83.91,18.48,18.467,83.91]
[1688217350432,59.0439,18.477,18.467,83.91]
[1688217351031,179.55967896,18.476,18.463,56.8462]
[1688217351230,0.77969181,18.474,18.47,0.87784521]
[1688217352036,0.77969181,18.474,18.455,27.4457767]
[1688217352037,83.91,18.472,18.459,83.45]
[1688217352341,95.66056542,18.471,18.459,83.45]
[1688217352929,154.48976542,18.471,18.459,83.45]
[1688217353133,0.83221378,18.467,18.463,0.8036687]
[1688217361845,58.8292,18.471,18.463,0.8036687]
[1688217362032,95.66901338,18.47,18.463,0.8036687]
[1688217362736,0.73304268,18.468,18.463,0.8036687]
[1688217375756,84.62304268,18.468,18.463,0.8036687]
[1688217375960,84.62304268,18.468,18.455,140.7362]
[1688217376255,83.89,18.457,18.444,83.89]
[1688217376462,178.79237469,18.456,18.441,137.914]
[1688217376649,95.71237469,18.455,18.441,137.914]
[1688217376850,0.74290604,18.45,18.446,0.80596851]
[1688217377055,0.74290604,18.45,18.441,54.594]
[1688217378164,0.74290604,18.45,18.444,0.80526247]
[1688217382161,83.82290604,18.45,18.444,0.80526247]
[1688217382560,83.08,18.445,18.431,83.14]
[1688217383163,83.89,18.442,18.429,83.32]
[1688217383565,0.84114577,18.437,18.434,0.81819254]
[1688217384766,83.08,18.448,18.435,83.89]
[1688217385156,283.08,18.448,18.435,83.89]
[1688217385361,83.08,18.448,18.435,83.89]
[1688217385659,283.08,18.448,18.435,83.89]
[1688217385859,0.84829336,18.443,18.44,0.75427336]
[1688217388870,83.53,18.443,18.43,83.89]
[1688217389774,0.78606358,18.438,18.435,0.85590616]
[1688217398777,0.78606358,18.438,18.43,83.89]
[1688217399379,0.78606358,18.438,18.427,140.9856]
[1688217399682,0.78606358,18.438,18.427,83.89]
[1688217399977,0.78606358,18.438,18.431,0.53625022]
[1688217401083,0.78606358,18.438,18.433,83.89]
[1688217402182,83.89,18.449,18.436,83.32]
[1688217402485,95.82453055,18.448,18.44,83.89]
[1688217402678,141.0219,18.453,18.44,83.89]
[1688217402986,95.8120366,18.452,18.44,83.89]
[1688217403281,0.796311,18.448,18.444,0.82137829]
[1688217403482,0.80824044,18.448,18.444,0.82175648]
[1688217404481,84.19,18.455,18.444,84.71175648]
[1688217404783,95.80189917,18.454,18.447,83.89]
[1688217404981,95.80189917,18.453,18.447,83.89]
[1688217405189,95.80189917,18.452,18.447,83.89]
[1688217405483,95.80189917,18.451,18.447,83.89]
[1688217405679,0.84222983,18.451,18.448,0.86472329]
[1688217406387,139.4157,18.462,18.449,83.89]
[1688217406684,95.76686462,18.461,18.449,83.89]
[1688217407279,0.76590682,18.457,18.453,0.80158288]
[1688217407485,95.76686462,18.456,18.453,0.80158288]
[1688217408585,0.76590682,18.457,18.453,0.80158288]
[1688217410886,83.84590682,18.457,18.453,0.80158288]
[1688217411187,83.08,18.457,18.444,83.89]
[1688217411982,0.84403963,18.452,18.449,0.85917635]
[1688217426698,0.04245675,18.452,18.449,0.85917635]
[1688217428598,0.04245675,18.452,18.451,83.89]
[1688217430795,0.04245675,18.452,18.449,0.85917635]
[1688217435605,83.57245675,18.452,18.439,83.89]
[1688217435906,83.53,18.452,18.439,83.89]
[1688217436201,200.0,18.458,18.431,335.56]
[1688217436202,83.89,18.45,18.437,83.89]
[1688217436595,0.83298841,18.445,18.437,111.63047258]
[1688217436813,0.83298841,18.445,18.442,0.80056598]
[1688217439011,0.83298841,18.445,18.434,83.89]
[1688217440014,0.83298841,18.445,18.438,0.85289965]
[1688217441420,83.89,18.444,18.438,0.85289965]
[1688217444421,83.08,18.442,18.429,83.89]
[1688217444913,83.89,18.437,18.425,56.4677]
[1688217445115,83.89,18.437,18.426,9.96207212]
[1688217445321,0.89069376,18.433,18.43,0.46028926]
[1688217452012,84.78069376,18.433,18.419,83.32]
[1688217452220,200.0,18.438,18.419,26.6446679]
[1688217452221,83.89,18.429,18.419,26.6446679]
[1688217452522,83.89,18.427,18.416,58.048]
[1688217452719,83.89,18.427,18.417,9.96746966]
[1688217452921,83.89,18.427,18.416,58.048]
[1688217453117,0.80827958,18.423,18.416,58.048]
[1688217453429,0.80827958,18.423,18.415,27.16556967]
[1688217453724,83.08,18.429,18.416,93.28739576]
[1688217453915,83.08,18.429,18.416,83.32]
[1688217454827,0.75436701,18.424,18.421,0.80960485]
[1688217458723,58.7173,18.431,18.421,0.80960485]
[1688217459130,83.89,18.432,18.421,0.80960485]
[1688217459425,83.53,18.436,18.423,83.89]
[1688217459618,0.77175723,18.431,18.428,0.83153274]
[1688217460626,83.89,18.43,18.417,83.89]
[1688217460828,83.08,18.428,18.415,83.89]
[1688217461024,83.08,18.428,18.416,9.96735501]
[1688217461326,83.08,18.428,18.415,83.89]
[1688217461718,0.74808503,18.423,18.42,0.73258645]
[1688217462520,283.08,18.428,18.408,83.89]
[1688217462521,83.89,18.421,18.408,83.89]
[1688217462722,83.53,18.423,18.41,83.89]
[1688217463434,0.87079342,18.418,18.41,83.89]
[1688217464233,83.89,18.426,18.414,83.32]
[1688217465128,83.89,18.426,18.418,0.86782918]
[1688217465323,0.75035741,18.422,18.418,0.86782918]
[1688217466232,83.89,18.432,18.42,83.89]
[1688217466422,84.45,18.44,18.425,83.89]
[1688217466628,146.86294013,18.439,18.425,83.89]
[1688217466929,54.2077,18.439,18.425,83.89]
[1688217467330,0.73323213,18.434,18.43,0.75907964]
[1688217468626,92.67596003,18.433,18.421,83.89]
[1688217468826,83.89,18.431,18.419,83.89]
[1688217469728,0.89132532,18.427,18.423,0.84082984]
[1688217481231,84.42132532,18.427,18.423,0.84082984]
[1688217481437,84.42132532,18.427,18.414,83.32]
[1688217481639,83.53,18.427,18.414,83.32]
[1688217481836,83.89,18.425,18.412,142.3928]
[1688217482441,0.83856408,18.42,18.408,83.63]
[1688217482641,0.87361962,18.416,18.408,83.63]
[1688217488351,83.95361962,18.416,18.406,58.5028]
[1688217489348,0.87361962,18.416,18.406,142.3928]
[1688217489649,0.87361962,18.416,18.409,83.32]
[1688217491946,0.87361962,18.416,18.411,83.89]
[1688217493947,83.89,18.426,18.413,83.89]
[1688217494856,83.89,18.429,18.416,83.89]
[1688217495050,0.76171856,18.421,18.418,0.81551015]
[1688217495250,0.79448195,18.421,18.418,0.81551015]
[1688217497259,0.79448195,18.421,18.414,83.89]
[1688217497859,0.79448195,18.421,18.416,83.89]
[1688217498253,0.79448195,18.421,18.417,0.0797929]
[1688217501757,83.89,18.428,18.417,0.0797929]
[1688217502857,0.7444109,18.424,18.417,0.0797929]
[1688217511069,57.5063,18.43,18.418,83.89]
[1688217511070,141.0363,18.43,18.418,83.89]
[1688217511966,0.75712906,18.426,18.422,0.80444489]
[1688217513867,0.75712906,18.426,18.422,84.69444489]
[1688217516778,0.75712906,18.426,18.422,0.80444489]
[1688217517575,84.64712906,18.426,18.422,0.80444489]
[1688217520575,83.89,18.424,18.411,83.89]
[1688217520776,83.89,18.424,18.412,9.97075598]
[1688217521573,0.79761553,18.42,18.416,0.81431456]
[1688217522381,83.89,18.418,18.406,83.32]
[1688217522682,83.89,18.418,18.407,9.97187364]
[1688217523167,55.7353,18.417,18.407,9.97187364]
[1688217523366,0.81634408,18.414,18.407,9.97187364]
[1688217525879,0.81634408,18.414,18.403,83.89]
[1688217526081,0.76345965,18.41,18.404,9.97278578]
[1688217526281,0.76345965,18.41,18.403,83.89]
[1688217526781,83.84345965,18.41,18.397,83.89]
[1688217527091,0.76892624,18.405,18.399,83.89]
[1688217527272,0.86646695,18.404,18.399,83.89]
[1688217527478,0.83844439,18.403,18.399,83.89]
[1688217527775,83.53,18.413,18.399,83.89]
[1688217528675,0.78265951,18.408,18.404,0.79703159]
[1688217529879,83.89,18.423,18.407,83.89]
[1688217530082,335.56,18.44,18.414,83.32]
[1688217530083,92.76825776,18.422,18.414,83.32]
[1688217530384,83.89,18.427,18.414,83.32]
[1688217530584,92.73103668,18.426,18.414,83.32]
[1688217530780,0.84608707,18.422,18.418,0.81289749]
[1688217537580,56.7395,18.43,18.421,83.89]
[1688217537784,92.70743939,18.429,18.421,83.89]
[1688217538501,0.30550897,18.427,18.425,83.89]
[1688217545302,0.30550897,18.427,18.423,84.86356907]
[1688217552409,0.30550897,18.427,18.426,83.89]
[1688217552896,0.30550897,18.427,18.423,84.20356907]
[1688217553105,0.30550897,18.427,18.423,0.88356907]
[1688217558699,92.99637529,18.427,18.423,0.88356907]
[1688217558905,92.69086632,18.426,18.423,0.88356907]
[1688217559101,0.30550897,18.427,18.423,0.88356907]
[1688217565405,93.02013776,18.427,18.423,0.88356907]
[1688217565600,0.30550897,18.427,18.423,0.88356907]
[1688217573004,0.30550897,18.427,18.424,83.89]
[1688217575409,0.30550897,18.427,18.426,83.32]
[1688217576622,0.30550897,18.427,18.424,83.89]
[1688217582822,0.30550897,18.427,18.426,83.89]
[1688217590536,30.64369465,18.439,18.43,200.0]
[1688217590735,59.3074,18.454,18.438,83.89]
[1688217590937,92.59856345,18.453,18.433,301.6]
[1688217591138,92.59856345,18.453,18.433,328.72526]
[1688217591541,0.78980043,18.445,18.441,0.89422551]
[1688217591735,0.77757532,18.445,18.441,0.80213824]
[1688217592943,75.17,18.443,18.43,75.4]
[1688217593244,92.62146403,18.442,18.43,75.4]
[1688217593946,0.81600102,18.438,18.434,0.88516073]
[1688217599244,0.81600102,18.438,18.435,83.02]
[1688217599452,0.01386278,18.438,18.435,83.02]
[1688217599751,0.01386278,18.438,18.437,82.94]
[1688217601751,0.01386278,18.438,18.435,83.02]
[1688217603352,0.01386278,18.438,18.434,0.88516073]
[1688217627964,92.65280029,18.438,18.434,0.88516073]
[1688217628164,0.01386278,18.438,18.434,0.88516073]
[1688217631968,0.01386278,18.438,18.437,83.02]
[1688217632671,92.6273217,18.449,18.437,83.02]
[1688217632972,40.0509757,18.448,18.446,83.02]
[1688217633172,54.4693,18.455,18.446,83.02]
[1688217633775,0.74510092,18.452,18.449,0.76130273]
[1688217637869,82.4,18.451,18.439,82.94]
[1688217638974,0.7627919,18.447,18.443,0.77171703]
[1688217648678,0.62813919,18.447,18.445,83.02]
[1688217648879,284.68495348,18.464,18.445,83.02]
[1688217649183,8.654437,18.463,18.452,82.94]
[1688217649886,0.81977415,18.459,18.456,0.75308898]
[1688217650683,0.81977415,18.459,18.458,82.94]
[1688217653383,90.69374062,18.459,18.458,82.94]
[1688217654086,90.69374062,18.459,18.456,0.75308898]
[1688217654378,89.87396647,18.458,18.456,0.75308898]
[1688217654579,0.81977415,18.459,18.457,83.02]
[1688217655990,82.25,18.473,18.458,83.02]
[1688217656290,8.65050317,18.472,18.466,83.02]
[1688217656585,8.65050317,18.471,18.466,83.02]
[1688217656780,57.7447,18.476,18.466,83.02]
[1688217656979,0.77435831,18.473,18.469,0.80575472]
[1688217657282,8.64949109,18.472,18.469,0.84842208]
[1688217657982,8.64949109,18.472,18.469,0.16094982]
[1688217665697,8.64949109,18.472,18.469,1e-08]
[1688217674607,88.45103001,18.471,18.469,1e-08]
[1688217674806,8.64949109,18.47,18.469,1e-08]
[1688217675007,97.1005211,18.47,18.469,1e-08]
[1688217675709,96.93957129,18.47,18.469,1e-08]
[1688217679203,96.93957129,18.47,18.469,76.22000001]
[1688217679813,96.93957129,18.47,18.469,1e-08]
[1688217686607,8.48854128,18.47,18.469,1e-08]
[1688217687010,8.48854128,18.472,18.469,1e-08]
[1688217687211,96.93855176,18.471,18.469,1e-08]
[1688217687413,96.93781085,18.47,18.469,1e-08]
[1688217690406,8.48854128,18.47,18.469,1e-08]
[1688217690606,8.48854128,18.472,18.469,1e-08]
[1688217690810,88.44986288,18.471,18.469,1e-08]
[1688217691009,8.48854128,18.47,18.469,1e-08]
[1688217691218,96.93840416,18.47,18.469,1e-08]
[1688217692518,8.48854128,18.47,18.469,1e-08]
[1688217693311,96.93385489,18.47,18.469,1e-08]
[1688217694217,88.44531361,18.47,18.469,1e-08]
[1688217694620,88.44531361,18.472,18.469,1e-08]
[1688217694813,97.08230081,18.471,18.469,1e-08]
[1688217695013,88.44531361,18.47,18.469,1e-08]
[1688217695214,0.73168752,18.473,18.469,1e-08]
[1688217695414,8.63700489,18.472,18.469,1e-08]
[1688217702026,8.63700489,18.472,18.47,76.22]
[1688217705326,0.73168752,18.473,18.47,76.22]
[1688217705529,8.63700888,18.472,18.47,76.22]
[1688217705729,8.63700888,18.472,18.469,1e-08]
[1688217707224,0.73168752,18.473,18.469,1e-08]
[1688217713332,0.73168752,18.473,18.472,76.22]
[1688217725051,0.73168752,18.473,18.472,102.98367634]
[1688217729157,76.22,18.488,18.472,102.98367634]
[1688217729454,8.62908838,18.487,18.477,76.22]
[1688217729958,0.86855827,18.484,18.48,0.85952686]
[1688217730858,0.86855827,18.484,18.48,69.17952686]
[1688217731855,0.86855827,18.484,18.48,0.85952686]
[1688217742868,0.86855827,18.484,18.48,69.17952686]
[1688217746072,8.62969133,18.483,18.48,0.85952686]
[1688217746266,68.14,18.481,18.474,68.51]
[1688217747275,0.74505441,18.479,18.476,0.83447729]
[1688217747467,68.51,18.478,18.471,68.32]
[1688217748571,0.74768419,18.476,18.473,0.76348209]
[1688217750673,68.88768419,18.476,18.473,0.76348209]
[1688217751477,68.88768419,18.476,18.469,68.51]
[1688217751777,68.51,18.473,18.466,68.32]
[1688217752580,0.73905548,18.471,18.468,0.8168177]
[1688217755180,69.24905548,18.471,18.464,68.32]
[1688217756380,69.24905548,18.471,18.466,0.71723967]
[1688217761982,0.73905548,18.471,18.466,0.71723967]
[1688217764585,0.73905548,18.471,18.469,68.32]
[1688217771991,0.73905548,18.471,18.466,69.22723967]
[1688217772897,0.73905548,18.471,18.469,68.32]
[1688217781894,0.73905548,18.471,18.47,68.51]
[1688217782995,68.14,18.481,18.47,68.51]
[1688217783198,68.14,18.481,18.474,68.51]
[1688217783903,0.75217133,18.479,18.474,68.51]
[1688217784107,0.75217133,18.479,18.476,0.79251627]
[1688217785899,68.51,18.478,18.476,0.79251627]
[1688217786106,68.51,18.478,18.471,68.32]
[1688217787095,68.51,18.478,18.473,0.66275302]
[1688217790007,68.14,18.476,18.469,68.51]
[1688217791000,0.73501831,18.474,18.469,68.51]
[1688217791403,0.73501831,18.474,18.451,200.0]
[1688217791603,0.88080729,18.464,18.463,68.32]
[1688217791799,0.85706608,18.465,18.46,68.51]
[1688217792013,0.84496367,18.464,18.46,68.51]
[1688217793412,68.14,18.461,18.454,68.51]
[1688217793619,0.73189973,18.459,18.454,68.51]
[1688217794312,69.24189973,18.459,18.452,68.51]
[1688217794522,0.75449545,18.457,18.452,68.51]
[1688217795919,0.75449545,18.457,18.449,76.35]
[1688217796112,0.88097113,18.455,18.449,76.35]
[1688217805021,75.62,18.454,18.443,134.3427]
[1688217805217,0.89103703,18.45,18.443,76.35]
[1688217805410,0.89103703,18.45,18.44,76.35]
[1688217805615,0.8553113,18.447,18.44,76.35]
[1688217805818,0.8553113,18.447,18.433,57.486]
[1688217805819,0.8553113,18.447,18.437,76.04]
[1688217806013,0.88977382,18.444,18.437,103.31088702]
[1688217807219,0.88977382,18.444,18.437,76.04]
[1688217808225,0.88977382,18.444,18.434,76.35]
[1688217808523,0.85934369,18.441,18.432,56.4658]
[1688217811022,0.85934369,18.441,18.434,76.21]
[1688217811924,0.85934369,18.441,18.437,76.35]
[1688217813227,0.85934369,18.441,18.434,76.35]
[1688217814425,0.85934369,18.441,18.437,76.04]
[1688217816728,76.35,18.451,18.44,76.04]
[1688217817818,0.74554729,18.447,18.444,0.82320325]
[1688217821930,76.35,18.446,18.435,76.04]
[1688217822931,0.88791751,18.442,18.435,76.04]
[1688217827934,0.88791751,18.442,18.432,56.4658]
[1688217828135,0.88791751,18.442,18.434,76.35]
[1688217831837,0.88791751,18.442,18.436,76.35]
[1688217837832,0.88791751,18.442,18.433,76.35]
[1688217840940,0.88791751,18.442,18.436,76.35]
[1688217845743,0.88791751,18.442,18.433,76.35]
[1688217846146,76.35,18.441,18.432,56.4658]
[1688217847447,0.88791751,18.442,18.424,76.04]
[1688217847448,76.35,18.435,18.424,76.04]
[1688217847647,0.8130466,18.431,18.424,130.8099]
[1688217849848,0.8130466,18.431,18.42,76.21]
[1688217850054,200.0,18.438,18.417,76.35]
[1688217850055,0.81105087,18.427,18.417,76.35]
[1688217851253,76.35,18.425,18.414,76.35]
[1688217851454,0.82618462,18.421,18.414,76.35]
[1688217853155,0.82618462,18.421,18.416,76.04]
[1688217853347,0.87578113,18.42,18.416,76.04]
[1688217857844,0.87578113,18.42,18.419,76.21]
[1688217859154,0.87578113,18.42,18.416,76.35]
[1688217860954,0.87578113,18.42,18.419,76.04]
[1688217861257,75.62,18.43,18.419,76.04]
[1688217861657,200.0,18.428,18.419,76.04]
[1688217862058,0.80774989,18.425,18.422,0.73337809]
[1688217869064,75.77,18.433,18.422,76.94337809]
[1688217869260,75.77,18.433,18.422,76.21]
[1688217869456,76.35,18.435,18.424,76.35]
[1688217869860,200.0,18.438,18.416,26.75142568]
[1688217869861,75.77,18.433,18.422,76.35]
[1688217870062,0.87741415,18.429,18.422,76.35]
[1688217870259,0.87741415,18.429,18.426,0.77076026]
[1688217880766,76.35,18.437,18.426,77.12076026]
[1688217880967,76.35,18.437,18.426,76.35]
[1688217881769,0.74087104,18.433,18.43,0.75959856]
[1688217885880,75.77,18.444,18.432,76.35]
[1688217886977,0.80376675,18.44,18.436,0.84142556]
[1688217895480,0.15120565,18.44,18.436,0.84142556]
[1688217895669,0.15120565,18.44,18.438,76.35]
[1688217897173,0.15120565,18.44,18.436,0.84142556]
[1688217899675,0.15120565,18.44,18.438,76.35]
[1688217910378,0.15120565,18.44,18.436,0.84142556]
[1688217913487,76.23,18.437,18.425,76.21]
[1688217914681,0.8216784,18.433,18.429,0.76929454]
[1688217916088,76.4416784,18.433,18.429,0.76929454]
[1688217916291,76.35,18.431,18.419,76.35]
[1688217916782,276.23,18.428,18.417,76.35]
[1688217917186,0.8933277,18.424,18.421,0.87668193]
[1688217918785,76.35,18.422,18.413,56.9194]
[1688217919785,0.77005453,18.419,18.416,0.8564031]
[1688217921891,0.77005453,18.419,18.41,76.35]
[1688217922091,75.62,18.421,18.41,76.35]
[1688217922990,0.8095261,18.417,18.414,77.00538355]
[1688217923191,76.35,18.425,18.414,77.00538355]
[1688217923896,75.62,18.423,18.414,0.65538355]
[1688217924085,75.62,18.423,18.412,76.35]
[1688217924286,0.84797959,18.419,18.416,0.80034433]
[1688217929293,0.84797959,18.419,18.412,76.35]
[1688217929491,0.84797959,18.419,18.409,57.0982]
[1688217929696,0.84797959,18.419,18.408,76.46]
[1688217930095,0.84797959,18.419,18.412,0.72417131]
[1688217935598,0.84797959,18.419,18.412,77.07417131]
[1688217942611,0.84797959,18.419,18.415,76.35]
[1688217948210,200.0,18.428,18.418,76.21]
[1688217949209,0.78316919,18.425,18.421,0.82440029]
[1688217959521,0.78316919,18.425,18.416,76.35]
[1688217960430,0.78316919,18.425,18.419,0.74671873]
[1688217961820,76.35,18.424,18.419,0.74671873]
[1688217965824,0.78316919,18.425,18.419,0.74671873]
[1688217969929,77.13316919,18.425,18.419,0.74671873]
[1688217972624,76.35,18.425,18.413,76.35]
[1688217973731,0.78265088,18.421,18.413,76.35]
[1688217976034,0.78265088,18.421,18.412,54.2808]
[1688217976949,0.78265088,18.421,18.411,76.35]
[1688217980041,0.78265088,18.421,18.414,76.21]
[1688217980241,0.82061425,18.419,18.414,76.21]
[1688217981834,0.82061425,18.419,18.413,76.35]
[1688217983635,0.82061425,18.419,18.415,76.35]
[1688217990146,0.82061425,18.419,18.408,331.37655649]
[1688217990349,76.35,18.431,18.418,76.21]
[1688217990650,200.0,18.438,18.415,305.4]
[1688217990651,76.35,18.435,18.424,76.35]
[1688217990852,76.35,18.435,18.412,200.0]
[1688217990853,67.82,18.432,18.426,68.03]
[1688217991246,67.59,18.43,18.427,0.79570728]
[1688217991445,68.45990291,18.43,18.427,0.81740155]
[1688218001567,267.82,18.428,18.414,68.03]
[1688218001764,67.82,18.421,18.414,68.03]
[1688218001967,67.82,18.42,18.413,123.3335]
[1688218002168,67.82,18.42,18.413,67.67]
[1688218002670,0.85145585,18.418,18.413,67.67]
[1688218004269,0.85145585,18.418,18.408,57.6521]
[1688218004471,0.85145585,18.418,18.407,26.96747102]
[1688218004665,0.85145585,18.418,18.413,67.67]
[1688218004869,67.59,18.414,18.407,68.03]
[1688218005070,0.77693487,18.412,18.407,68.03]
[1688218005367,0.77693487,18.412,18.406,67.67]
[1688218005960,0.77693487,18.412,18.404,134.4564]
[1688218006273,76.38693487,18.412,18.4,75.74]
[1688218006468,0.78862713,18.408,18.403,75.74]
[1688218006767,0.81343613,18.407,18.403,75.74]
[1688218006972,0.73991985,18.407,18.403,75.74]
[1688218007170,0.73991985,18.407,18.406,75.74]
[1688218007970,74.99,18.421,18.406,75.74]
[1688218008169,74.99,18.421,18.41,75.74]
[1688218009073,0.81063878,18.417,18.406,75.74]
[1688218017972,75.61,18.413,18.401,75.69]
[1688218018175,0.8493831,18.409,18.401,75.69]
[1688218018676,0.8493831,18.409,18.399,59.7105]
[1688218018875,0.8493831,18.409,18.405,75.74]
[1688218021985,0.8493831,18.409,18.402,75.35]
[1688218022580,0.8493831,18.409,18.405,75.69]
[1688218025789,0.8493831,18.409,18.402,75.74]
[1688218031091,0.8493831,18.409,18.4,75.74]
[1688218031390,0.8493831,18.409,18.397,75.74]
[1688218031584,0.77443143,18.405,18.397,75.74]
[1688218032799,0.77443143,18.405,18.399,75.74]
[1688218034291,0.77443143,18.405,18.397,75.35]
[1688218037385,0.77443143,18.405,18.391,75.38]